fUSD/lending_fUSD_20260622
["ID","MTS","AMOUNT","RATE_DAILY","PERIOD"]
[426006250,1782109840000,-321.0,0.00017363,2]
[426006315,1782109841000,-193.75266335,0.000214,2]
[426006309,1782109841000,-1612.37,0.00021273,2]
[426006316,1782109841000,-151.0,0.00021429,2]
[426006307,1782109841000,-193.75266335,0.000212,2]
[426006313,1782109841000,-8043.27,0.0002139,2]
[426006319,1782109841000,-157.57092906,0.00021429,2]
[426006314,1782109841000,-33318.9848,0.000214,2]
[426006322,1782109841000,-151.0,0.00021429,2]
[426006321,1782109841000,-200.0,0.00021429,2]
[426006317,1782109841000,-202.36001253,0.00021429,2]
[426006318,1782109841000,-358.19769023,0.00021429,2]
[426006308,1782109841000,-785.0,0.00021271,2]
[426006312,1782109841000,-2624.40595934,0.000213,2]
[426006328,1782109841000,-327.98278615,0.00021429,2]
[426006320,1782109841000,-151.0,0.00021429,2]
[426006325,1782109841000,-578.20924308,0.00021429,2]
[426006335,1782109841000,-151.0,0.00021429,2]
[426006336,1782109841000,-151.0,0.00021429,2]
[426006332,1782109841000,-151.0,0.00021429,2]
[426006334,1782109841000,-500.0,0.00021429,2]
[426006333,1782109841000,-490.60788746,0.00021429,2]
[426006327,1782109841000,-151.0,0.00021429,2]
[426006331,1782109841000,-151.0,0.00021429,2]
[426006326,1782109841000,-151.0,0.00021429,2]
[426006330,1782109841000,-151.0,0.00021429,2]
[426006306,1782109841000,-434.81,0.00021158,2]
[426006329,1782109841000,-151.0,0.00021429,2]
[426006323,1782109841000,-174.61919141,0.00021429,2]
[426006305,1782109841000,-8462.56605441,0.00021152,2]
[426006289,1782109841000,-170.1,0.00020959,2]
[426006310,1782109841000,-982.2,0.00021273,2]
[426006340,1782109841000,-695.39793187,0.00021429,2]
[426006284,1782109841000,-158.0,0.00020741,2]
[426006286,1782109841000,-500.0,0.00020789,2]
[426006287,1782109841000,-2000.0,0.0002079,2]
[426006285,1782109841000,-210.84124237,0.00020771,2]
[426006278,1782109841000,-1360.0,0.00020084,2]
[426006277,1782109841000,-383.0,0.00020084,2]
[426006279,1782109841000,-1007.28,0.00020145,2]
[426006281,1782109841000,-198.6,0.00020381,2]
[426006280,1782109841000,-785.0,0.00020274,2]
[426006282,1782109841000,-158.0,0.00020549,2]
[426006283,1782109841000,-785.0,0.00020606,2]
[426006288,1782109841000,-785.0,0.00020939,2]
[426006304,1782109841000,-156.0,0.00021,2]
[426006290,1782109841000,-261.424124,0.00020972,2]
[426006291,1782109841000,-188.089115,0.00020972,2]
[426006295,1782109841000,-241.0,0.00021,2]
[426006294,1782109841000,-563.0,0.00021,2]
[426006298,1782109841000,-164.0,0.00021,2]
[426006292,1782109841000,-183.289363,0.00020972,2]
[426006296,1782109841000,-193.75266335,0.00021,2]
[426006293,1782109841000,-207.225024,0.00020972,2]
[426006297,1782109841000,-162.0,0.00021,2]
[426006303,1782109841000,-156.0,0.00021,2]
[426006300,1782109841000,-686.0,0.00021,2]
[426006302,1782109841000,-355.0,0.00021,2]
[426006311,1782109841000,-17210.31,0.00021273,2]
[426006301,1782109841000,-173.0,0.00021,2]
[426006299,1782109841000,-507.0,0.00021,2]
[426006337,1782109841000,-152.0,0.00021429,2]
[426006324,1782109841000,-151.0,0.00021429,2]
[426006342,1782109841000,-151.0,0.00021429,2]
[426006374,1782109841000,-202.36001253,0.00021484,2]
[426006369,1782109841000,-500.0,0.00021429,2]
[426006376,1782109841000,-202.36001253,0.00021539,2]
[426006387,1782109841000,-1000.0,0.000217,2]
[426006386,1782109841000,-699.0,0.000217,2]
[426006375,1782109841000,-151.0,0.00021484,2]
[426006377,1782109841000,-151.0,0.00021539,2]
[426006378,1782109841000,-202.36001253,0.00021594,2]
[426006379,1782109841000,-151.0,0.00021594,2]
[426006380,1782109841000,-193.75266335,0.000216,2]
[426006383,1782109841000,-202.36001253,0.00021649,2]
[426006381,1782109841000,-500.0,0.00021603,2]
[426006382,1782109841000,-785.0,0.00021603,2]
[426006372,1782109841000,-500.0,0.00021429,2]
[426006385,1782109841000,-738.0,0.00021663,7]
[426006388,1782109841000,-151.0,0.00021703,2]
[426006390,1782109841000,-156.96423074,0.00021704,2]
[426006389,1782109841000,-202.36001253,0.00021704,2]
[426006400,1782109841000,-200.0,0.00021918,2]
[426006398,1782109841000,-200.0,0.00021918,2]
[426006397,1782109841000,-200.0,0.00021918,2]
[426006393,1782109841000,-202.36001253,0.00021869,2]
[426006399,1782109841000,-200.0,0.00021918,2]
[426006396,1782109841000,-5000.0,0.00021918,2]
[426006392,1782109841000,-202.36001253,0.00021814,2]
[426006341,1782109841000,-500.0,0.00021429,2]
[426006395,1782109841000,-193.75266335,0.000219,2]
[426006394,1782109841000,-700.0,0.000219,7]
[426006384,1782109841000,-151.0,0.00021649,2]
[426006368,1782109841000,-151.0,0.00021429,2]
[426006391,1782109841000,-202.36001253,0.00021759,2]
[426006370,1782109841000,-151.0,0.00021429,2]
[426006364,1782109841000,-151.0,0.00021429,2]
[426006339,1782109841000,-151.0,0.00021429,2]
[426006344,1782109841000,-151.0,0.00021429,2]
[426006338,1782109841000,-151.0,0.00021429,2]
[426006346,1782109841000,-151.0,0.00021429,2]
[426006348,1782109841000,-500.0,0.00021429,2]
[426006345,1782109841000,-500.0,0.00021429,2]
[426006347,1782109841000,-151.0,0.00021429,2]
[426006349,1782109841000,-151.0,0.00021429,2]
[426006351,1782109841000,-500.0,0.00021429,2]
[426006401,1782109841000,-200.0,0.00021918,2]
[426006350,1782109841000,-151.0,0.00021429,2]
[426006361,1782109841000,-151.0,0.00021429,2]
[426006354,1782109841000,-500.0,0.00021429,2]
[426006343,1782109841000,-201.93286098,0.00021429,2]
[426006353,1782109841000,-151.0,0.00021429,2]
[426006362,1782109841000,-151.0,0.00021429,2]
[426006365,1782109841000,-151.0,0.00021429,2]
[426006367,1782109841000,-151.0,0.00021429,2]
[426006366,1782109841000,-500.0,0.00021429,2]
[426006363,1782109841000,-500.0,0.00021429,2]
[426006360,1782109841000,-500.0,0.00021429,2]
[426006371,1782109841000,-151.0,0.00021429,2]
[426006359,1782109841000,-151.0,0.00021429,2]
[426006352,1782109841000,-151.0,0.00021429,2]
[426006357,1782109841000,-500.0,0.00021429,2]
[426006373,1782109841000,-269.6725767,0.00021429,2]
[426006356,1782109841000,-151.0,0.00021429,2]
[426006358,1782109841000,-151.0,0.00021429,2]
[426006355,1782109841000,-151.0,0.00021429,2]
[426006428,1782109842000,-200.0,0.00022116,2]
[426006436,1782109842000,-1458.77431724,0.00022407,2]
[426006431,1782109842000,-785.0,0.00022268,2]
[426006432,1782109842000,-198.6,0.00022353,2]
[426006443,1782109842000,-500.0,0.00022499,2]
[426006444,1782109842000,-358.19769023,0.00022525,2]
[426006441,1782109842000,-1723.43,0.00022466,2]
[426006437,1782109842000,-8462.56605441,0.00022435,2]
[426006439,1782109842000,-1012.41,0.00022466,2]
[426006440,1782109842000,-1320.67,0.00022466,2]
[426006445,1782109842000,-187.78006524,0.00022525,2]
[426006438,1782109842000,-200.0,0.00022439,2]
[426006451,1782109842000,-236.31465493,0.00022588,2]
[426006447,1782109842000,-151.0,0.00022525,2]
[426006446,1782109842000,-200.0,0.00022525,2]
[426006459,1782109842000,-164.0,0.00023,2]
[426006449,1782109842000,-152.85415714,0.00022525,2]
[426006448,1782109842000,-490.60788746,0.00022525,2]
[426006450,1782109842000,-217.15233878,0.00022525,2]
[426006452,1782109842000,-785.0,0.000226,2]
[426006453,1782109842000,-151.0,0.00022799,2]
[426006455,1782109842000,-785.0,0.00022933,2]
[426006458,1782109842000,-162.0,0.00023,2]
[426006456,1782109842000,-563.0,0.00023,2]
[426006433,1782109842000,-2624.40595934,0.00022359,2]
[426006442,1782109842000,-500.0,0.00022499,2]
[426006427,1782109842000,-202.36001263,0.00022034,2]
[426006419,1782109842000,-162.0,0.00022,2]
[426006429,1782109842000,-1362.0,0.0002214,5]
[426006402,1782109842000,-200.0,0.00021918,2]
[426006404,1782109842000,-785.0,0.00021936,2]
[426006403,1782109842000,-202.36001253,0.00021924,2]
[426006405,1782109842000,-152.71659717,0.00021977,2]
[426006410,1782109842000,-151.0,0.00021977,2]
[426006409,1782109842000,-181.08010149,0.00021977,2]
[426006411,1782109842000,-490.60788746,0.00021977,2]
[426006408,1782109842000,-200.0,0.00021977,2]
[426006406,1782109842000,-358.19769023,0.00021977,2]
[426006407,1782109842000,-157.5709291,0.00021977,2]
[426006413,1782109842000,-209.40437684,0.00021977,2]
[426006412,1782109842000,-151.0,0.00021977,2]
[426006434,1782109842000,-1458.77431726,0.00022407,2]
[426006417,1782109842000,-241.0,0.00022,2]
[426006422,1782109842000,-686.0,0.00022,2]
[426006416,1782109842000,-563.0,0.00022,2]
[426006421,1782109842000,-507.0,0.00022,2]
[426006423,1782109842000,-937.45,0.00022,2]
[426006418,1782109842000,-450.0,0.00022,2]
[426006414,1782109842000,-202.36001253,0.00021979,2]
[426006415,1782109842000,-500.0,0.00021995,2]
[426006424,1782109842000,-355.0,0.00022,2]
[426006425,1782109842000,-156.0,0.00022,2]
[426006435,1782109842000,-1458.77431724,0.00022407,2]
[426006426,1782109842000,-169.3264048,0.00022,2]
[426006430,1782109842000,-151.0,0.00022251,2]
[426006420,1782109842000,-164.0,0.00022,2]
[426006457,1782109842000,-241.0,0.00023,2]
[426006465,1782109842000,-194.72792766,0.00023073,2]
[426006460,1782109842000,-507.0,0.00023,2]
[426006501,1782109842000,-490.60788746,0.00023621,2]
[426006505,1782109842000,-421.044,0.00023665,4]
[426006516,1782109842000,-785.0,0.0002393,2]
[426006518,1782109842000,-241.0,0.00024,2]
[426006528,1782109842000,-721.12765534,0.00024168,2]
[426006517,1782109842000,-563.0,0.00024,2]
[426006519,1782109842000,-162.0,0.00024,2]
[426006520,1782109842000,-164.0,0.00024,2]
[426006522,1782109842000,-507.0,0.00024,2]
[426006524,1782109842000,-355.0,0.00024,2]
[426006523,1782109842000,-686.0,0.00024,2]
[426006526,1782109842000,-150.0,0.0002411,2]
[426006515,1782109842000,-151.0,0.00023895,2]
[426006527,1782109842000,-599.60298507,0.00024168,2]
[426006529,1782109842000,-358.19769023,0.00024169,2]
[426006532,1782109842000,-151.0,0.00024169,2]
[426006530,1782109842000,-209.40437684,0.00024169,2]
[426006533,1782109842000,-490.60788746,0.00024169,2]
[426006534,1782109842000,-242.15909246,0.00024169,2]
[426006535,1782109842000,-500.0,0.00024173,2]
[426006540,1782109842000,-198.6,0.00024324,2]
[426006538,1782109842000,-500.0,0.00024278,2]
[426006539,1782109842000,-309.46009611,0.00024278,2]
[426006536,1782109842000,-2000.9654,0.00024225,2]
[426006537,1782109842000,-10003.3977,0.00024225,2]
[426006454,1782109842000,-200.0,0.00022869,2]
[426006531,1782109842000,-200.0,0.00024169,2]
[426006512,1782109842000,-8462.56605441,0.00023719,2]
[426006525,1782109842000,-156.0,0.00024,2]
[426006514,1782109842000,-176.0,0.00023776,2]
[426006463,1782109842000,-156.0,0.00023,2]
[426006499,1782109842000,-151.0,0.00023621,2]
[426006466,1782109842000,-200.0,0.00023073,2]
[426006462,1782109842000,-355.0,0.00023,2]
[426006461,1782109842000,-686.0,0.00023,2]
[426006464,1782109842000,-358.19769023,0.00023073,2]
[426006469,1782109842000,-225.18697532,0.00023073,2]
[426006467,1782109842000,-151.0,0.00023073,2]
[426006471,1782109842000,-1360.0,0.00023084,2]
[426006468,1782109842000,-490.60788746,0.00023073,2]
[426006472,1782109842000,-785.0,0.00023265,2]
[426006474,1782109842000,-750.0,0.00023395,2]
[426006484,1782109842000,-170.22347374,0.00023579,2]
[426006470,1782109842000,-383.0,0.00023084,2]
[426006491,1782109842000,-358.19769023,0.00023621,2]
[426006503,1782109842000,-233.5188934,0.00023621,2]
[426006486,1782109842000,-785.0,0.00023598,2]
[426006508,1782109842000,-992.0,0.00023718,2]
[426006496,1782109842000,-200.0,0.00023621,2]
[426006480,1782109842000,-4345.0,0.00023516,3]
[426006482,1782109842000,-226.97211214,0.00023561,7]
[426006510,1782109842000,-747.0,0.00023718,2]
[426006476,1782109842000,-150.0,0.00023395,7]
[426006489,1782109842000,-200.0,0.00023621,2]
[426006473,1782109842000,-151.0,0.00023347,2]
[426006493,1782109842000,-201.93286098,0.00023621,2]
[426006478,1782109842000,-2624.40595934,0.00023417,2]
[426006591,1782109843000,-150.0,0.00024975,7]
[426006582,1782109843000,-251.11897888,0.00024717,2]
[426006581,1782109843000,-490.60788746,0.00024717,2]
[426006578,1782109843000,-358.19769023,0.00024717,2]
[426006568,1782109843000,-500.0,0.00024658,2]
[426006575,1782109843000,-1489.0,0.00024667,2]
[426006572,1782109843000,-500.0,0.00024658,2]
[426006573,1782109843000,-500.0,0.00024658,2]
[426006579,1782109843000,-217.15233878,0.00024717,2]
[426006576,1782109843000,-1121.0,0.00024667,2]
[426006580,1782109843000,-200.0,0.00024717,2]
[426006574,1782109843000,-494.58565803,0.00024658,2]
[426006586,1782109843000,-6617.240197,0.00024833,2]
[426006595,1782109843000,-253.81474819,0.00025,2]
[426006592,1782109843000,-500.0,0.00024999,2]
[426006585,1782109843000,-150.0,0.00024789,7]
[426006588,1782109843000,-150.0,0.00024867,7]
[426006587,1782109843000,-150.0,0.00024861,7]
[426006590,1782109843000,-150.0,0.00024946,7]
[426006583,1782109843000,-264.0,0.00024728,2]
[426006584,1782109843000,-987.08579521,0.00024734,2]
[426006589,1782109843000,-150.0,0.00024937,7]
[426006606,1782109843000,-150.0,0.00025089,7]
[426006598,1782109843000,-516.78142548,0.00025,2]
[426006600,1782109843000,-360.82064631,0.00025,2]
[426006577,1782109843000,-150.0,0.00024711,7]
[426006593,1782109843000,-7500.0,0.00025,2]
[426006570,1782109843000,-500.0,0.00024658,2]
[426006541,1782109843000,-150.0,0.00024333,2]
[426006567,1782109843000,-500.0,0.00024658,2]
[426006599,1782109843000,-702.16439674,0.00025,2]
[426006550,1782109843000,-500.0,0.00024499,2]
[426006542,1782109843000,-200.0,0.00024374,2]
[426006543,1782109843000,-151.0,0.00024443,2]
[426006548,1782109843000,-10000.0,0.00024495,2]
[426006549,1782109843000,-500.0,0.00024499,2]
[426006545,1782109843000,-2624.40595934,0.00024476,2]
[426006547,1782109843000,-185.21,0.00024491,2]
[426006544,1782109843000,-6518.0,0.00024457,3]
[426006546,1782109843000,-186.52,0.00024491,2]
[426006551,1782109843000,-937.45,0.00024606,7]
[426006552,1782109843000,-710.38191436,0.00024615,2]
[426006553,1782109843000,-150.0,0.00024633,7]
[426006556,1782109843000,-150.0,0.00024633,7]
[426006555,1782109843000,-150.0,0.00024633,7]
[426006558,1782109843000,-150.0,0.00024633,7]
[426006557,1782109843000,-150.0,0.00024633,7]
[426006554,1782109843000,-150.0,0.00024633,7]
[426006559,1782109843000,-152.0,0.00024649,3]
[426006561,1782109843000,-1000.0,0.00024658,2]
[426006560,1782109843000,-406.4,0.00024658,2]
[426006562,1782109843000,-500.0,0.00024658,2]
[426006564,1782109843000,-500.0,0.00024658,2]
[426006565,1782109843000,-500.0,0.00024658,2]
[426006563,1782109843000,-500.0,0.00024658,2]
[426006566,1782109843000,-500.0,0.00024658,2]
[426006569,1782109843000,-500.0,0.00024658,2]
[426006571,1782109843000,-500.0,0.00024658,2]
[426006594,1782109843000,-577.06802208,0.00025,2]
[426006657,1782109843000,-201.44915421,0.00025363,2]
[426006603,1782109843000,-8462.56605441,0.00025003,2]
[426006632,1782109843000,-397.48,0.00025313,2]
[426006634,1782109843000,-573.66,0.00025313,2]
[426006637,1782109843000,-150.0,0.00025337,7]
[426006635,1782109843000,-150.0,0.00025317,7]
[426006636,1782109843000,-150.0,0.00025317,7]
[426006638,1782109843000,-184.00312711,0.00025359,2]
[426006639,1782109843000,-162.50278518,0.00025359,2]
[426006643,1782109843000,-228.07525508,0.00025359,2]
[426006641,1782109843000,-183.55426152,0.00025359,2]
[426006642,1782109843000,-165.67616188,0.00025359,2]
[426006646,1782109843000,-222.48011417,0.00025359,2]
[426006644,1782109843000,-167.50998851,0.00025359,2]
[426006648,1782109843000,-163.4467654,0.00025359,2]
[426006647,1782109843000,-182.41953637,0.00025359,2]
[426006649,1782109843000,-164.20959463,0.00025359,2]
[426006645,1782109843000,-216.60320213,0.00025359,2]
[426006650,1782109843000,-224.51725154,0.00025359,2]
[426006651,1782109843000,-180.72698077,0.00025359,2]
[426006654,1782109843000,-185.58526239,0.00025363,2]
[426006655,1782109843000,-162.46794338,0.00025363,2]
[426006659,1782109843000,-186.22259622,0.00025363,2]
[426006658,1782109843000,-166.15476429,0.00025363,2]
[426006661,1782109843000,-205.67067118,0.00025363,2]
[426006652,1782109843000,-210.56836787,0.00025359,2]
[426006653,1782109843000,-214.65791568,0.00025363,2]
[426006656,1782109843000,-208.19536667,0.00025363,2]
[426006597,1782109843000,-183.46045026,0.00025,2]
[426006631,1782109843000,-185.2,0.00025313,2]
[426006640,1782109843000,-173.77206013,0.00025359,2]
[426006660,1782109843000,-157.00807854,0.00025363,2]
[426006629,1782109843000,-644.33,0.00025313,2]
[426006633,1782109843000,-573.64,0.00025313,2]
[426006601,1782109843000,-156.92135483,0.00025,2]
[426006596,1782109843000,-175.68400559,0.00025,2]
[426006602,1782109843000,-167.16,0.00025,2]
[426006608,1782109843000,-150.0,0.00025102,7]
[426006617,1782109843000,-490.60788746,0.00025265,2]
[426006607,1782109843000,-320.0,0.000251,7]
[426006615,1782109843000,-225.18697532,0.00025265,2]
[426006610,1782109843000,-710.38191436,0.00025121,2]
[426006611,1782109843000,-150.0,0.0002518,7]
[426006614,1782109843000,-358.19769023,0.00025265,2]
[426006612,1782109843000,-150.0,0.00025241,7]
[426006613,1782109843000,-150.0,0.00025258,7]
[426006605,1782109843000,-150.0,0.00025024,7]
[426006616,1782109843000,-200.0,0.00025265,2]
[426006609,1782109843000,-1037.64792999,0.00025118,2]
[426006626,1782109843000,-185.21,0.00025313,2]
[426006624,1782109843000,-644.31,0.00025313,2]
[426006623,1782109843000,-573.64,0.00025313,2]
[426006622,1782109843000,-500.0,0.00025312,2]
[426006625,1782109843000,-185.2,0.00025313,2]
[426006630,1782109843000,-573.66,0.00025313,2]
[426006621,1782109843000,-572.45,0.00025312,2]
[426006628,1782109843000,-183.94,0.00025313,2]
[426006627,1782109843000,-482.43,0.00025313,2]
[426006618,1782109843000,-279.46505256,0.00025265,2]
[426006619,1782109843000,-5520.0,0.000253,3]
[426006620,1782109843000,-396.29,0.00025312,2]
[426006705,1782109844000,-152.0,0.00025653,6]
[426006704,1782109844000,-150.0,0.00025649,7]
[426006702,1782109844000,-1169.77,0.00025627,2]
[426006700,1782109844000,-150.0,0.00025571,7]
[426006701,1782109844000,-785.0,0.00025592,2]
[426006696,1782109844000,-2624.40595934,0.00025535,2]
[426006703,1782109844000,-8691.0,0.00025633,3]
[426006715,1782109844000,-160.0,0.00025797,3]
[426006693,1782109844000,-6147.79799296,0.000255,7]
[426006699,1782109844000,-461.73306027,0.00025565,30]
[426006698,1782109844000,-150.0,0.00025545,7]
[426006714,1782109844000,-151.0,0.00025786,2]
[426006706,1782109844000,-150.0,0.00025659,7]
[426006707,1782109844000,-184.51424214,0.00025706,19]
[426006708,1782109844000,-461.73306027,0.00025711,30]
[426006709,1782109844000,-150.0,0.00025728,7]
[426006710,1782109844000,-150.0,0.00025773,7]
[426006713,1782109844000,-17210.31,0.00025786,2]
[426006712,1782109844000,-982.2,0.00025786,2]
[426006716,1782109844000,-150.0,0.00025806,7]
[426006718,1782109844000,-358.19769023,0.00025813,2]
[426006719,1782109844000,-233.5188934,0.00025813,2]
[426006697,1782109844000,-150.0,0.00025545,7]
[426006717,1782109844000,-176.37996658,0.00025813,2]
[426006711,1782109844000,-1612.37,0.00025786,2]
[426006694,1782109844000,-35433.79,0.000255,5]
[426006688,1782109844000,-291.18355547,0.00025437,14]
[426006687,1782109844000,-494.34425861,0.00025423,2]
[426006725,1782109844000,-461.73306027,0.00025857,30]
[426006663,1782109844000,-154.39169809,0.00025363,2]
[426006662,1782109844000,-202.10289449,0.00025363,2]
[426006664,1782109844000,-151.4684631,0.00025363,2]
[426006666,1782109844000,-150.85368051,0.00025363,2]
[426006670,1782109844000,-152.8910879,0.00025363,2]
[426006671,1782109844000,-191.74124933,0.00025363,2]
[426006667,1782109844000,-209.14680243,0.00025363,2]
[426006669,1782109844000,-164.59365981,0.00025363,2]
[426006673,1782109844000,-199.46356476,0.00025363,2]
[426006668,1782109844000,-198.66587687,0.00025363,2]
[426006695,1782109844000,-153.91102007,0.00025528,60]
[426006674,1782109844000,-195.69954738,0.00025365,2]
[426006691,1782109844000,-150.0,0.00025493,7]
[426006690,1782109844000,-589.3668,0.00025437,14]
[426006689,1782109844000,-435.59318444,0.00025437,14]
[426006692,1782109844000,-500.0,0.00025499,2]
[426006679,1782109844000,-180.71206471,0.00025365,2]
[426006686,1782109844000,-206.0,0.00025416,2]
[426006680,1782109844000,-165.42254321,0.00025365,2]
[426006684,1782109844000,-183.22193274,0.00025365,2]
[426006685,1782109844000,-150.0,0.00025415,7]
[426006677,1782109844000,-202.88675833,0.00025365,2]
[426006683,1782109844000,-197.19798621,0.00025365,2]
[426006665,1782109844000,-173.57559987,0.00025363,2]
[426006722,1782109844000,-150.0,0.00025849,7]
[426006724,1782109844000,-1494.0,0.00025853,2]
[426006723,1782109844000,-1985.0,0.00025853,2]
[426006745,1782109844000,-150.0,0.00026119,7]
[426006754,1782109844000,-644.33,0.00026135,2]
[426006753,1782109844000,-185.99,0.00026135,2]
[426006767,1782109844000,-150.0,0.00026275,7]
[426006756,1782109844000,-482.43,0.00026135,2]
[426006766,1782109844000,-785.0,0.00026256,2]
[426006759,1782109844000,-151.78,0.00026135,2]
[426006755,1782109844000,-573.66,0.00026135,2]
[426006757,1782109844000,-573.66,0.00026135,2]
[426006758,1782109844000,-573.58,0.00026135,2]
[426006762,1782109844000,-150.0,0.00026153,7]
[426006751,1782109844000,-1169.77,0.00026133,2]
[426006764,1782109844000,-6617.240197,0.00026202,2]
[426006760,1782109844000,-573.64,0.00026135,2]
[426006765,1782109844000,-150.0,0.00026229,7]
[426006768,1782109844000,-8462.56605441,0.00026287,2]
[426006769,1782109844000,-198.6,0.00026296,2]
[426006770,1782109844000,-379.804831,0.00026343,2]
[426006775,1782109844000,-191.24486927,0.00026345,2]
[426006772,1782109844000,-452.950745,0.00026345,2]
[426006773,1782109844000,-191.26832832,0.00026345,2]
[426006771,1782109844000,-150.0,0.00026343,7]
[426006774,1782109844000,-438.660518,0.00026345,2]
[426006776,1782109844000,-448.502411,0.00026345,2]
[426006761,1782109844000,-461.73306027,0.00026148,60]
[426006752,1782109844000,-573.66,0.00026133,2]
[426006763,1782109844000,-150.0,0.00026197,7]
[426006749,1782109844000,-1287.7187,0.00026125,2]
[426006720,1782109844000,-200.0,0.00025813,2]
[426006746,1782109844000,-500.0,0.00026124,2]
[426006721,1782109844000,-490.60788746,0.00025813,2]
[426006726,1782109844000,-150.0,0.00025884,7]
[426006728,1782109844000,-1400.0,0.000259,9]
[426006727,1782109844000,-500.0,0.00025899,2]
[426006729,1782109844000,-22600.0,0.000259,2]
[426006730,1782109844000,-5529.0,0.000259,5]
[426006742,1782109844000,-160.96345417,0.00026083,2]
[426006741,1782109844000,-150.0,0.0002604,7]
[426006732,1782109844000,-785.0,0.00025924,2]
[426006743,1782109844000,-1360.0,0.00026084,2]
[426006731,1782109844000,-353.0,0.00025916,2]
[426006747,1782109844000,-2007.8195,0.00026125,2]
[426006735,1782109844000,-9053.17432645,0.00026,5]
[426006750,1782109844000,-438.3525,0.00026125,2]
[426006744,1782109844000,-494.34425858,0.00026101,2]
[426006748,1782109844000,-10010.2414,0.00026125,2]
[426006740,1782109844000,-461.73306027,0.00026002,30]
[426006736,1782109844000,-10000.0,0.00026,2]
[426006737,1782109844000,-150.0,0.00026001,7]
[426006738,1782109844000,-150.0,0.00026001,7]
[426006739,1782109844000,-150.0,0.00026001,7]
[426006733,1782109844000,-150.0,0.00025962,7]
[426006734,1782109844000,-1702.0,0.00026,5]
[426006819,1782109845000,-785.0,0.00026589,2]
[426006810,1782109845000,-151.0,0.000265,2]
[426006814,1782109845000,-166.842779,0.000265,2]
[426006813,1782109845000,-166.842779,0.000265,2]
[426006807,1782109845000,-25117.91,0.000265,5]
[426006815,1782109845000,-151.0,0.000265,2]
[426006809,1782109845000,-29585.85,0.000265,5]
[426006812,1782109845000,-166.842779,0.000265,2]
[426006816,1782109845000,-150.0,0.0002651,7]
[426006811,1782109845000,-166.842779,0.000265,2]
[426006820,1782109845000,-2624.40595934,0.00026594,2]
[426006817,1782109845000,-285.0,0.00026548,7]
[426006828,1782109845000,-433.20640426,0.00026629,2]
[426006831,1782109845000,-364.83907275,0.00026629,2]
[426006826,1782109845000,-331.35232376,0.00026629,2]
[426006827,1782109845000,-456.15051015,0.00026629,2]
[426006824,1782109845000,-347.54412026,0.00026629,2]
[426006830,1782109845000,-444.96022834,0.00026629,2]
[426006825,1782109845000,-367.10852303,0.00026629,2]
[426006829,1782109845000,-335.01997702,0.00026629,2]
[426006822,1782109845000,-368.00625423,0.00026629,2]
[426006821,1782109845000,-152.0,0.00026596,7]
[426006823,1782109845000,-325.00557037,0.00026629,2]
[426006833,1782109845000,-328.41918926,0.00026629,2]
[426006834,1782109845000,-449.03450308,0.00026629,2]
[426006808,1782109845000,-151.0,0.000265,2]
[426006818,1782109845000,-150.0,0.00026588,7]
[426006805,1782109845000,-50000.0,0.000265,5]
[426006778,1782109845000,-3386.2443,0.00026345,2]